Cogmind - Beta 14 @@@ ROGUE MODE // 2024.12.30 @ 17:38:16 Player: Mathewnd Result: Destroyed by G-47 Trooper with Particle Gun Performance ------------- Evolutions (2) 1000 Regions Visited (3) 600 Robots Destroyed (39) 195 Value Destroyed (1232) 1232 Prototype IDs (1) 20 Alien Tech Used (0) 0 Bonus (16) 16 TOTAL SCORE: 3063 Bonus ------- High Alert Combat Kills 16 Cogmind --------- Core Integrity 0/550 Matter 124/300 Energy 290/290 System Corruption 0% Temperature Hot (258) Movement Core (700) Ox13 Location -8/Materials Parts ------- > --- POWER (1) -------- Reinforced Deuterium Engine > --- PROPULSION (4) --- (None) > --- UTILITY (4) ------ Large Storage Unit > --- WEAPON (2) ------- Gauss Cannon > --- INVENTORY (15) --- Light Ion Engine Light Nuclear Core Improved Deuterium Engine Wheel Medium Storage Unit Sensor Array Transmission Jammer Hardened Heavy Armor Plating Hacking Suite Peak State ------------ > --- POWER ------------ Reinforced Deuterium Engine > --- PROPULSION ------- Armored Treads Armored Treads > --- UTILITY ---------- Large Storage Unit Active Sensor Suite > --- WEAPON ----------- Shotgun > --- INVENTORY -------- Light Ion Engine Light Nuclear Core Improved Deuterium Engine Wheel Medium Storage Unit Sensor Array Transmission Jammer Hardened Heavy Armor Plating Hacking Suite [Rating: 42] Favorites ----------- Power Improved Deuterium Engine Engine Improved Deuterium Engine Power Core Light Nuclear Core Propulsion Light Treads Treads Light Treads Leg Aluminum Leg Utility Small Storage Unit Device Hardlight Generator Storage Small Storage Unit Processor Improved Signal Interpreter Protection Medium Armor Plating Weapon Shotgun Energy Gun Medium Laser Ballistic Gun Shotgun Ballistic Cannon Gauss Cannon Build | -11 -10 -9 -8 ------- Run | Yrd Mat Mat Mat Slots Evolved 4 | . . 2 2 Power . | . . . . Propulsion 2 | . . 2 . Utility 2 | . . . 2 Weapon . | . . . . Parts Attached 38 | 6 10 10 12 Power 8 | 1 3 2 2 Engine 7 | 1 2 2 2 Core 1 | . 1 . . Reactor . | . . . . Propulsion 14 | 2 3 6 3 Treads 9 | 2 2 2 3 Leg 5 | . 1 4 . Wheel . | . . . . Hover . | . . . . Flight . | . . . . Utility 7 | 1 1 1 4 Device 2 | . . . 2 Storage 2 | 1 . . 1 Processor 2 | . 1 1 . Hackware . | . . . . Protection 1 | . . . 1 Artifact . | . . . . Weapon 9 | 2 3 1 3 Energy Gun 2 | 1 1 . . Energy Cannon . | . . . . Ballistic Gun 5 | 1 2 1 1 Ballistic Cannon 2 | . . . 2 Launcher . | . . . . Special Weapon . | . . . . Impact Weapon . | . . . . Slashing Weapon . | . . . . Piercing Weapon . | . . . . Special Melee Weapon . | . . . . Unidentified Prototypes 1 | . . . 1 Parts Lost 19 | . 3 4 12 Power 3 | . 1 1 1 Propulsion 7 | . 1 2 4 Utility 4 | . . . 4 Weapon 5 | . 1 1 3 Highest Loss Streak 9 | . 2 3 9 To Critical Strikes . | . . . . Average Slot Usage (%) 93 | . 98 95 90 Engine 10 | . 11 11 8 Treads 20 | . 26 21 16 Leg 12 | . 1 18 16 Device 3 | . . . 7 Storage 10 | . 14 11 9 Processor 9 | . 12 11 7 Protection 4 | . . . 8 Energy Gun 2 | . 10 . . Ballistic Gun 18 | . 17 22 16 Peak Build Rating 42 | 6 10 15 42 Average Rating 16 | 4 8 13 22 On Entrance 7 | . 6 10 14 Naked Turns . | . . . . Heaviest Build 48 | 14 14 18 48 Greatest Support 40 | 40 40 40 40 Greatest Overweight (x) 15 | . . . 15 Average Overweight (x) . | . . . . Largest Inventory Capacity 15 | 8 8 8 15 Average Capacity 11 | 6 8 8 14 Most Carried 11 | 6 8 8 11 Average Carried 8 | 4 7 7 8 Final Capacity 15 | 8 8 8 15 Final Carried 10 | 6 8 7 10 Class Distribution -------------------- 56% | Scavenger-Mutant 43% | Mutant Dominant Class ---------------- Mutant | -10/Materials Scavenger-Mutant | -9/Materials Scavenger-Mutant | -8/Materials Resources | -11 -10 -9 -8 ----------- Run | Yrd Mat Mat Mat Matter Collected 1061 | 205 281 431 144 Remotely . | . . . . Salvage Created 1383 | . 605 452 326 Parts 104 | . 36 40 28 Haulers Intercepted 1 | . 1 . . Recyclers Shooed 2 | . 1 1 . Parts Field Recycled . | . . . . Retrieved Matter . | . . . . Parts Self-Destructed . | . . . . Prevented . | . . . . Kills | -11 -10 -9 -8 ------- Run | Yrd Mat Mat Mat Combat Hostiles Destroyed 30 | . 11 12 7 Guns 29 | . 11 12 6 Cannons 1 | . . . 1 Classes Destroyed 10 | . 6 1 3 Hauler 1 | . 1 . . Recycler 1 | . 1 . . Operator 1 | . 1 . . Watcher 6 | . 3 3 . Swarmer 6 | . 3 3 . Grunt 17 | . 8 6 3 Duelist 1 | . . . 1 Sentry 3 | . . 3 . Specialist 2 | . . . 2 Heavy 1 | . . . 1 Best Kill Streak 7 | . 5 7 4 Combat Bots Only 7 | . 4 7 4 Max Kills in Single Turn 1 | . 1 1 1 Gunslinging . | . . . . Exploded . | . . . . Melee . | . . . . Uniques/NPCs Destroyed . | . . . . Combat | -11 -10 -9 -8 -------- Run | Yrd Mat Mat Mat Hostile Shots Fired 296 | . 74 60 162 Missed 65 | . 11 11 43 Damage Taken 3669 | . 760 680 2229 Core 801 | . 149 90 562 Absorbed by Shields 176 | . . . 176 Core Remaining (%) 72 | 100 40 77 . Volleys Fired 134 | . 64 40 30 Largest 2 | . 2 2 2 Hottest 70 | . 70 46 48 Shots Fired 256 | . 128 80 48 Gun 251 | . 128 80 43 Cannon 5 | . . . 5 Launcher . | . . . . Special . | . . . . Kinetic 199 | . 71 80 48 Thermal 57 | . 57 . . Explosive . | . . . . Electromagnetic . | . . . . Robot Hit Streak 17 | . 17 8 8 Robot Miss Streak 4 | . 3 4 2 Penetration Max . | . . . . Secondary Targets 3 | . . 1 2 Max Gunslinging Chain 1 | . . 1 1 Shots Hit Robots 196 | . 87 64 45 Core Hits 89 | . 33 32 24 Critical Kills 1 | . . . 1 Critical Parts Destroyed . | . . . . Critical Strikes 7 | . 6 . 1 Burn 6 | . 6 . . Destroy 1 | . . . 1 Melee Attacks . | . . . . Impact . | . . . . Slashing . | . . . . Piercing . | . . . . Sneak Attacks . | . . . . Combat Hostiles . | . . . . Follow-up Attacks . | . . . . Damage Inflicted 2852 | . 1104 885 863 Guns 2714 | . 1104 883 727 Cannons 136 | . . . 136 Explosions . | . . . . Melee . | . . . . Ramming 2 | . . 2 . Kinetic 2342 | . 596 883 863 Thermal 508 | . 508 . . Explosive . | . . . . Electromagnetic . | . . . . Impact . | . . . . Slashing . | . . . . Piercing . | . . . . Highest Corruption . | . . . . Average Corruption . | . . . . Corruption Purged . | . . . . Corruption Blocked . | . . . . Overload Shots . | . . . . Overflow Damage . | . . . . Projectiles . | . . . . Explosions . | . . . . Melee . | . . . . Knockbacks 4 | . . . 4 Impact . | . . . . Kinetic 4 | . . . 4 Secondary . | . . . . Self-Inflicted Damage . | . . . . Shots . | . . . . Rammed . | . . . . Targets Rammed 1 | . . 1 . Kicked 1 | . . 1 . Crushed . | . . . . Highest Temperature 264 | . 264 26 240 Average Temperature 82 | . 92 5 71 Received Heat Transfer 1550 | . 456 279 815 Siege Activations . | . . . . Robots Corrupted . | . . . . Combat Hostiles . | . . . . Parts Fried . | . . . . Impact Corruptions . | . . . . Robots Melted . | . . . . Combat Hostiles . | . . . . Parts Melted 2 | . 2 . . Heat Transferred 1961 | . 1961 . . Parts Sabotaged . | . . . . Parts Stolen . | . . . . Parts Stripped . | . . . . Power Chain Reactions . | . . . . Alert | -11 -10 -9 -8 ------- Run | Yrd Mat Mat Mat Peak Influence 439 | . 195 439 180 Initial 137 | . . 63 137 Average 101 | . 96 228 52 Maximum Alert Level 2 | . . 2 . Low Security (%) 85 | 100 100 34 100 Level 1 12 | . . 53 . Level 2 2 | . . 11 . Level 3 . | . . . . Level 4 . | . . . . Level 5 . | . . . . High Security . | . . . . Max Security . | . . . . Squads Dispatched 5 | . 1 . 4 Investigation 1 | . . . 1 Extermination . | . . . . Reinforcement 4 | . 1 . 3 Assault . | . . . . Garrison . | . . . . Intercept . | . . . . Searches Triggered . | . . . . Construction Impeded 1 | . . . 1 Haulers Reinforced . | . . . . Active Scanning Responses 1 | . . . 1 Cargo Convoy Interrupts . | . . . . Stealth | -11 -10 -9 -8 --------- Run | Yrd Mat Mat Mat Distress Signals 4 | . 2 2 . Communications Jammed . | . . . . Distress Signals . | . . . . Times Spotted 59 | . 19 23 17 Peak Tracking Total 6 | . 3 5 6 Tactical Retreats 4 | . 1 3 . Traps | -11 -10 -9 -8 ------- Run | Yrd Mat Mat Mat Traps Triggered . | . . . . Indirectly . | . . . . Trap Hack Attempts . | . . . . Triggered . | . . . . Disarmed . | . . . . Reprogrammed . | . . . . Reused . | . . . . Traps Extracted . | . . . . Installed . | . . . . Triggered . | . . . . Machines | -11 -10 -9 -8 ---------- Run | Yrd Mat Mat Mat Machines Disabled . | . . . . Max in Single Turn . | . . . . Machines Repaired . | . . . . Machines Dismantled . | . . . . Machines Sabotaged . | . . . . Overloaded Fab Kills . | . . . . Hacking | -11 -10 -9 -8 --------- Run | Yrd Mat Mat Mat Machines Accessed 5 | . 2 3 . Terminals 4 | . 1 3 . Fabricators . | . . . . Repair Stations . | . . . . Recycling Units 1 | . 1 . . Scanalyzers . | . . . . Garrison Access . | . . . . Total Hacks 17 | . 6 11 . Successful 10 | . 2 8 . Failed 7 | . 4 3 . Catastrophic 1 | . . 1 . Database Lockouts . | . . . . Manual 9 | . 2 7 . Terminals 13 | . 2 11 . Fabricators . | . . . . Repair Stations . | . . . . Recycling Units 4 | . 4 . . Scanalyzers . | . . . . Garrison Access . | . . . . Terminal Hacks 5 | . . 5 . Level Access Points 1 | . . 1 . Alert Level 1 | . . 1 . Locate Traps 1 | . . 1 . Hauler Manifests 1 | . . 1 . Registered Components 1 | . . 1 . Fabricator Hacks . | . . . . Repair Station Hacks . | . . . . Recycling Unit Hacks 1 | . 1 . . Report Inventory 1 | . 1 . . Scanalyzer . | . . . . Garrison Access Hacks . | . . . . Unauthorized Hacks 4 | . 1 3 . Terminals 4 | . 1 3 . Botnet 4 | . 1 3 . Fabricators . | . . . . Repair Stations . | . . . . Recycling Units . | . . . . Scanalyzers . | . . . . Garrison Access . | . . . . Data Cores Recovered . | . . . . Used . | . . . . Hacking Detections 5 | . 2 3 . Full Trace Events . | . . . . Feedback Events . | . . . . Feedback Blocked . | . . . . Robot Schematics Acquired . | . . . . Robots Built . | . . . . Authchips . | . . . . Time . | . . . . Total Robot Build Rating . | . . . . Part Schematics Acquired . | . . . . Parts Built . | . . . . Authchips . | . . . . Time . | . . . . Total Part Build Rating . | . . . . Parts Repaired . | . . . . Time . | . . . . Parts Recycled . | . . . . Recycled Matter . | . . . . Retrieved Matter . | . . . . Retrieved Components . | . . . . Parts Scanalyzed . | . . . . Part Schematics Acquired . | . . . . Parts Damaged . | . . . . Bothacking | -11 -10 -9 -8 ------------ Run | Yrd Mat Mat Mat Used RIF Installer . | . . . . Robots Hacked . | . . . . Non-combat . | . . . . Combat . | . . . . Robot Hacks Applied . | . . . . Relay Couplers Released . | . . . . Fabnet Peak Effective % . | . . . . Robots Rewired . | . . . . Allies Hacked . | . . . . Hacks Repelled . | . . . . Allies | -11 -10 -9 -8 -------- Run | Yrd Mat Mat Mat Total Allies . | . . . . Largest Group . | . . . . Highest-Rated Group . | . . . . Highest-Rated Ally . | . . . . Total Orders . | . . . . Ally Attacks . | . . . . Total Damage . | . . . . Kills . | . . . . Allies Corrupted . | . . . . Allies Melted . | . . . . Intel | -11 -10 -9 -8 ------- Run | Yrd Mat Mat Mat Robot Analysis Total . | . . . . Derelict Logs Recovered . | . . . . Drone Launches . | . . . . Drone Recoveries . | . . . . Exploration | -11 -10 -9 -8 ------------- Run | Yrd Mat Mat Mat Turns Passed 2681 | 86 658 615 1322 Spaces Moved 1131 | 47 233 325 526 Core 9 | 5 . . 4 Treads 899 | 42 233 102 522 Legs 223 | . . 223 . Wheels . | . . . . Hover . | . . . . Flight . | . . . . Fastest Speed 50 | 50 160 120 160 Average Speed 183 | 148 160 132 228 Slowest Speed 800 | 160 160 160 800 Overloaded Moves . | . . . . Propulsion Burnouts . | . . . . Robots Hopped . | . . . . Cave-ins Triggered . | . . . . Exploration Rate (%) 26 | 4 47 40 15 Regions Visited 3 Branch Regions . Pre-discovered Areas . | . . . . Known Exits Taken 2 | . 1 1 . Unknown Exits Taken 1 | 1 . . . Scrap Searched . | . . . . Spaces Dug . | . . . . Terrain Destroyed . | . . . . Melee . | . . . . Projectile . | . . . . AOE . | . . . . Terrain Rammed . | . . . . Walls Destroyed . | . . . . Machines Disabled . | . . . . Actions | -11 -10 -9 -8 --------- Run | Yrd Mat Mat Mat Total 1483 | 63 392 430 598 Wait 124 | . 66 45 13 Move 1128 | 46 232 324 526 Hop . | . . . . Pick Up 42 | 11 11 6 14 Fast Attach 6 | 1 3 1 1 Attach 24 | 5 4 5 10 Detach . | . . . . Swap 8 | . 3 4 1 Drop 16 | . 9 4 3 Fire 134 | . 64 40 30 Melee . | . . . . Ram . | . . . . Kick 1 | . . 1 . Crush . | . . . . Escape Stasis . | . . . . Rewire . | . . . . Trap . | . . . . Miscellaneous . | . . . . Route ------- -11/Scrapyard -10/Materials -9/Materials (discovered 5 exits: *Mat x3 / [*Min] / [*Sto]) -8/Materials History --------- Turn | Location | Event 8 | -11/Scrapyard | Discovered new exit (range 15) 87 | -11/Scrapyard | Entered Materials 316 | -10/Materials | Build established: Mutant 512 | -10/Materials | Core integrity fell below 50% 660 | -10/Materials | Discovered new exit (range 10) 679 | -10/Materials | Identified exit to Materials 745 | -10/Materials | Entered another Materials area 745 | -9/Materials | Evolved 2 slots: Propulsion x2 777 | -9/Materials | Identified exit to Materials 1108 | -9/Materials | Destroyed 7 combat bots 1304 | -9/Materials | Discovered new exit (range 7) 1304 | -9/Materials | Discovered new exit (range 14) 1324 | -9/Materials | Lost 3 parts (1p1n1w) 1360 | -9/Materials | Entered another Materials area 1360 | -8/Materials | Evolved 2 slots: Utility x2 1610 | -8/Materials | Build established: Scavenger-Mutant 2608 | -8/Materials | Lost 9 parts (1p3n3u2w) 2611 | -8/Materials | Found Prototype Device 2612 | -8/Materials | Identified Active Sensor Suite 2655 | -8/Materials | Core integrity fell below 50% 2676 | -8/Materials | Core integrity fell below 20% 2682 | -8/Materials | Destroyed by G-47 Trooper with Particle Gun Last Messages --------------- Arm. Treads severed. K-01 Serf collects debris. Shotgun destroyed. Lgt. Treads destroyed. K-01 Serf collects debris. ALERT: Active scanning activity reported from Zone 4E, dispatching Investigation squad. Arm. Treads severed. Acquired Gauss Cannon. Gauss Cannon severed. Acquired Gauss Cannon. Active Sensor Suite destroyed. L-31 Rogue knocked back. Critical hit (Burn: +37). L-31 Rogue knocked back. L-31 Rogue destroyed. G-47 Trooper knocked back. Critical hit (Burn: +37). Slug penetrates G-47 Trooper. G-47 Trooper knocked back. Map ----- +----------------------------------------------------+ | ????????????????? "%???????????????????????? | | ?????????????????? "???????????????????????? | | ?????????????????? ????????????????????????? | | ??????????????????? ????????????????????????? | | ???????????????????# #????????????????????????? | | ???????????????????# #????????????????????????? | | ???????????????????# %[###########??????????????? | | ???????????????????#= !##! #??????????????? | | ??????????????????##%!!## """"" #??????????????? | | ??????????????????#=! !#=%""T"" #??????????????? | | ??????????????????#*% !# #??????????????? | | ??????????????????# =[% / #??????????????? | | ??????????????????# % # "" #??????????????? | | ??????????????????# = # """ #??????????????? | | ??????????????????## ## "" #??????????????? | | ???????????????????#% ## #??????????????? | | ???????????????????# ###+#######??????????????? | | ???????????????????# #?# #?##?????????????????? | | ??????????????###### #?# #????????????????????? | | ??????????????# % #?# #????????????????????? | | ??????????????# g #?# #????????????????????? | | ??????????????# g #?# #????????????????????? | | ??????????????# # g ### #????????????????????? | | ??????????????# # g%=%# #????????????????????? | | ??????????????# #!!g]]]# #????????????????????? | | ?????########## #!!]]]@# #????????????????????? | | ?????# # ######## #????????????????????? | | ?????# = # #??????# #######??????????????? | | ?????# =#= #??????# + * #??????????????? | | ?????# """ !#![ #??????# # #??????????????? | | ?????# """ !=+ * ######## # """ #??????????????? | | ?????# """ !!# + """ #??????????????? | | ?????# """ # ######## # """ #??????????????? | | ?????# """ # !##??# # """ #??????????????? | | ?????# # !#??# + #??????????????? | | ?????########## #??# #######??????????????? | | ??????????????# !#??# #????????????????????? | | ??????????????# #??# #????????????????????? | | ??????????????# !##??# #????????????????????? | | ??????????????# ####???# #????????????????????? | | ??????????????# #????### ###??????????????????? | | ?????########## ###### #??????????????????? | | ?????# "" # #??????????????????? | | ?????# ""S # #??????????????????? | | ?????# "" # #??????????????????? | | ?????# # ###### #??????????????????? | | ?????# + #????# ##?????????????????? | | ?????# """ # #????# #?????????????????? | | ?????# ! """ # #????#! !!#?????????????????? | | ?????# """ #####????#!!* !!#?????????????????? | +----------------------------------------------------+ Best States ------------- Heat Dissipation 31 Energy Generation 16 Energy Capacity 290 Matter Stores 300 Matter Capacity 300 Sight Range 16 Robot Scan Range 20 Terrain Scan Density 10 Armor Coverage 225 Evasion (%) 55 Recoil Reduction 2 Item Schematics ----------------- None Robot Schematics ------------------ None Fabricated ------------ Nothing Alien Tech Used ----------------- None Achievements -------------- None Challenges ------------ None Game ------ Seed PulseFlightFlamer Manual? 0 Play Time 00:18:14 Cumulative 69.7 hours Start 2024.12.30 @ 17:19:56 End 2024.12.30 @ 17:38:16 Sessions 1 Manual Loads 0 Difficulty Rogue Special Mode None Game No. 73 Rogue 73 Adventurer 0 Explorer 0 Win Type - Total 1 Types 1/0/0/0/0/0/0/0/0 Lore% 44 Gallery% 40 Achievement% 41 Wizard Run 0 Options --------- Layout 1 ASCII 0 Keyboard 0 Movement Mouse Keybinds 0 Fullscreen 1 Font 24/Smallcaps Map View 50x35 Zoom Use 0% Tactical HUD 0 Map Filters NONE Filters NONE Steam 1 RUN: ed18bd11-8a47-465c-91d0-8eedcec2505f